bitfinex-derivatives/quotes_ETHF0:USTF0_20250112
["timestamp","ask_amount","ask_price","bid_price","bid_amount"]
[1736669307980,1.22467083,3270.3,3270.2,0.21416]
[1736669308278,1.01051083,3270.3,3270.2,0.21416]
[1736669308478,12.026015,3270.3,3270.2,0.21416]
[1736669308678,11.01550417,3270.3,3270.2,0.21416]
[1736669312384,10.80134417,3270.3,3270.2,0.21416]
[1736669312577,10.80134417,3270.3,3270.2,1.22467083]
[1736669315285,12.026015,3270.3,3270.2,0.21416]
[1736669315483,12.462115,3270.3,3270.2,0.21416]
[1736669318081,10.80134417,3270.3,3270.2,0.21416]
[1736669318583,10.80134417,3270.3,3270.2,5.21416]
[1736669318880,9.59277614,3270.4,3270.2,5.0]
[1736669319085,9.59277614,3270.4,3270.3,1.22467083]
[1736669319884,8.3967698,3270.9,3270.8,0.21413]
[1736669320190,8.3967698,3270.9,3270.8,1.22464083]
[1736669320577,8.3967698,3270.9,3270.8,2.10494083]
[1736669321375,8.3967698,3270.9,3270.8,1.09443]
[1736669324979,8.3967698,3270.9,3270.8,0.65983]
[1736669325189,8.3967698,3270.9,3270.8,0.4457]
[1736669325390,8.3967698,3270.9,3270.8,0.65983]
[1736669326589,8.3967698,3270.9,3270.8,0.4457]
[1736669326791,0.21412,3270.9,3270.5,2.96]
[1736669326984,0.9271,3270.8,3270.5,2.96]
[1736669327787,0.4496,3270.8,3270.7,0.21413]
[1736669329288,3.2078,3271.0,3270.9,0.21412]
[1736669329492,3.6695,3271.0,3270.9,0.21412]
[1736669331086,3.88361,3271.0,3270.9,0.21412]
[1736669335096,15.8875709,3271.0,3270.9,0.21412]
[1736669335294,15.6734609,3271.0,3270.9,0.21412]
[1736669336093,15.8875709,3271.0,3270.9,0.21412]
[1736669341690,16.82560597,3271.0,3270.9,0.21412]
[1736669345401,16.61149597,3271.0,3270.9,0.21412]
[1736669345596,15.2117609,3271.0,3270.9,1.22499867]
[1736669346804,12.81240872,3271.0,3270.9,1.22499867]
[1736669348904,9.60460872,3271.0,3270.9,1.22499867]
[1736669351608,8.40075625,3271.0,3270.9,1.22499867]
[1736669354217,8.40075625,3271.1,3270.9,1.01087867]
[1736669354415,8.40075625,3271.1,3271.0,1.12831]
[1736669354616,8.40075625,3271.1,3271.0,1.58631]
[1736669356419,8.91909029,3271.1,3271.0,1.58631]
[1736669357617,8.40075625,3271.1,3271.0,1.58631]
[1736669358219,8.40075625,3271.1,3270.7,2.96]
[1736669358417,0.21412,3271.0,3270.8,0.21412]
[1736669358611,0.21412,3270.9,3270.8,0.21412]
[1736669359316,8.40075625,3271.1,3270.8,0.21412]
[1736669359721,0.21412,3271.0,3270.8,0.21412]
[1736669360114,0.66232,3270.9,3270.8,0.21412]
[1736669360316,0.66232,3270.9,3270.5,3.2078]
[1736669360317,0.4482,3270.9,3270.5,3.2078]
[1736669360516,0.21415,3270.5,3270.4,0.21415]
[1736669360922,0.65354,3270.6,3270.5,0.21415]
[1736669361119,0.21415,3270.5,3270.4,0.21415]
[1736669361323,0.65354,3270.6,3270.5,0.21415]
[1736669362121,0.4394,3270.6,3270.0,3.2078]
[1736669362317,0.21415,3270.5,3270.4,0.21415]
[1736669363026,0.4394,3270.6,3270.4,0.21415]
[1736669363223,0.65354,3270.6,3270.4,0.21415]
[1736669363423,0.65354,3270.6,3270.5,0.21415]
[1736669363824,12.6575009,3270.6,3270.5,0.21415]
[1736669365426,12.4433609,3270.6,3270.5,0.21415]
[1736669371628,16.1000609,3270.6,3270.5,0.21415]
[1736669372221,17.03834956,3270.6,3270.5,0.21415]
[1736669375530,13.83054956,3270.6,3270.5,0.21415]
[1736669375731,16.1000609,3270.6,3270.5,0.21415]
[1736669376628,17.03834956,3270.6,3270.5,0.21415]
[1736669377732,16.73415552,3270.6,3270.5,0.21415]
[1736669377927,17.25248956,3270.6,3270.5,0.21415]
[1736669379336,17.03834956,3270.6,3270.5,0.21415]
[1736669379536,5.03438866,3270.6,3270.5,0.21415]
[1736669381737,4.51605462,3270.6,3270.5,0.21415]
[1736669382738,15.3126479,3270.6,3270.5,0.21415]
[1736669383030,15.83098194,3270.6,3270.5,0.21415]
[1736669383240,14.94268194,3270.6,3270.5,0.21415]
[1736669383435,14.52272732,3270.6,3270.5,1.10515]
[1736669384032,10.79659328,3270.6,3270.5,4.06515]
[1736669385236,8.39849557,3270.8,3270.5,4.06515]
[1736669385541,8.39849557,3270.8,3270.7,0.21413]
[1736669386036,8.39849557,3271.1,3270.6,4.21890056]
[1736669386338,8.39849557,3271.1,3271.0,1.22521056]
[1736669387144,19.19508885,3271.2,3271.0,1.01110056]
[1736669387343,19.19508885,3271.2,3271.1,1.11881]
[1736669387541,19.71348975,3271.2,3271.1,1.11881]
[1736669389136,8.91689647,3271.2,3271.1,1.11881]
[1736669389338,8.39849557,3271.2,3271.1,1.11881]
[1736669396153,8.39849557,3271.2,3271.1,9.07881]
[1736669396339,9.23686703,3271.4,3271.3,0.21409]
[1736669396642,9.23686703,3271.4,3271.3,5.55642975]
[1736669396843,9.23686703,3271.4,3271.3,10.55642975]
[1736669397846,15.14161328,3272.4,3272.2,0.21403]
[1736669399142,3.42183,3272.3,3272.2,0.21403]
[1736669399343,3.2078,3272.3,3272.2,0.21403]
[1736669401448,3.42183,3272.3,3272.2,0.21403]
[1736669401944,3.2078,3272.3,3272.2,0.21403]
[1736669402349,3.42183,3272.3,3272.2,0.21403]
[1736669403151,3.2078,3272.3,3272.2,0.21403]
[1736669403849,3.42183,3272.3,3272.2,0.21403]
[1736669404938,3.2078,3272.3,3271.8,0.4748]
[1736669405144,0.21404,3272.2,3272.1,0.21404]
[1736669407247,0.67714,3272.2,3272.1,0.21404]
[1736669408843,0.4631,3272.2,3271.8,0.4748]
[1736669409049,0.21405,3272.0,3271.9,0.21405]
[1736669409550,0.4631,3272.2,3271.5,0.468]
[1736669409849,0.8798,3271.9,3271.8,0.21406]
[1736669411454,0.4449,3271.9,3271.8,0.21406]
[1736669411650,0.9325,3272.2,3271.6,2.13453975]
[1736669411851,1.3774,3272.2,3272.1,0.21404]
[1736669415357,1.59143,3272.2,3272.1,0.21404]
[1736669419698,4.79923,3272.2,3272.1,0.21404]
[1736669420691,0.21405,3272.1,3272.0,0.21404]
[1736669424187,4.79924,3272.2,3272.1,0.21404]
[1736669426488,0.21405,3272.1,3272.0,0.21404]
[1736669430186,3.42185,3272.1,3272.0,0.21404]
[1736669430587,3.2078,3272.1,3272.0,0.21404]
[1736669432899,0.65893,3272.2,3271.9,1.3868]
[1736669433099,3.86673,3272.2,3272.1,0.21404]
[1736669433892,3.42183,3272.2,3272.1,0.21404]
[1736669435395,3.2078,3272.2,3272.1,0.21404]
[1736669436104,0.41888073,3272.5,3272.1,0.21404]
[1736669436294,12.6755709,3272.6,3272.0,1.54520559]
[1736669436499,12.6755709,3272.6,3272.5,0.21401]
[1736669436700,0.67161,3272.6,3272.5,0.21401]
[1736669436896,0.4576,3272.6,3272.5,0.21401]
[1736669437300,0.67161,3272.6,3272.5,0.21401]
[1736669437690,12.68962767,3272.6,3272.5,0.21401]
[1736669443405,0.21401,3272.5,3272.4,1.60442]
[1736669447404,3.42181,3272.5,3272.4,1.60442]
[1736669452809,0.21401,3272.5,3272.4,1.60442]
[1736669453011,12.23202767,3272.5,3272.4,1.60442]
[1736669453212,15.43982767,3272.5,3272.4,1.60442]
[1736669454911,12.23202767,3272.5,3272.4,1.60442]
[1736669455108,15.43982767,3272.5,3272.4,1.60442]
[1736669458910,12.23202767,3272.5,3272.4,1.60442]
[1736669459209,15.43982767,3272.5,3272.4,1.60442]
[1736669460308,15.43982767,3272.5,3272.4,1.3904]
[1736669460505,15.43982767,3272.5,3272.2,0.21403]
[1736669460506,0.21403,3272.3,3272.2,0.21403]
[1736669461312,1.60735377,3272.4,3272.3,0.21403]
[1736669462014,0.67102,3272.4,3272.3,0.21403]
[1736669462713,16.16215144,3272.5,3272.2,1.01009559]
[1736669462909,15.22581767,3272.5,3272.4,1.22411559]
[1736669471223,12.01801767,3272.5,3272.4,1.22411559]
[1736669483333,3.87941,3272.6,3272.4,1.01009559]
[1736669483334,3.6654,3272.6,3272.4,1.01009559]
[1736669483530,3.6654,3272.6,3272.5,0.21401]
[1736669483731,3.87941,3272.6,3272.5,0.21401]
[1736669484834,0.67161,3272.6,3272.5,0.21401]
[1736669485035,3.87941,3272.6,3272.5,0.21401]
[1736669486731,3.6654,3272.6,3272.5,0.21401]
[1736669487134,3.6654,3272.6,3272.5,0.66811]
[1736669487838,3.6654,3272.6,3272.5,1.10771]
[1736669489440,3.87941,3272.6,3272.5,1.10771]
[1736669491444,3.6654,3272.6,3272.5,1.10771]
[1736669491944,3.87941,3272.6,3272.5,1.10771]
[1736669492442,3.6654,3272.6,3272.5,1.10771]
[1736669492942,3.87941,3272.6,3272.5,1.10771]
[1736669493343,3.6654,3272.6,3272.5,1.10771]
[1736669497037,0.4576,3272.6,3272.5,1.10771]
[1736669497237,3.6654,3272.6,3272.5,1.10771]
[1736669504449,3.87941,3272.6,3272.5,1.10771]
[1736669505650,3.6654,3272.6,3272.5,1.10771]
[1736669507543,3.2078,3272.6,3272.5,1.10771]
[1736669507748,13.6953145,3273.4,3273.2,0.21397]
[1736669508049,13.6953145,3273.4,3273.3,0.21396]
[1736669508050,13.2384145,3273.4,3273.3,0.21396]
[1736669508351,13.2384145,3273.4,3273.3,1.15406]
[1736669508552,0.93633377,3273.5,3273.4,0.21395]
[1736669508755,3.42174,3273.6,3273.5,0.21395]
[1736669508950,3.2078,3273.6,3273.5,0.21395]
[1736669509748,3.2078,3273.6,3273.4,1.01009559]
[1736669509948,0.21395,3273.5,3273.4,1.22404559]
[1736669510150,5.62652936,3273.6,3273.2,1.01009559]
[1736669510348,0.21396,3273.3,3273.0,1.47779559]
[1736669510651,0.21396,3273.3,3273.1,0.21397]
[1736669510851,0.4512,3273.2,3273.1,0.21397]
[1736669511252,0.66517,3273.2,3273.1,0.21397]
[1736669511455,0.4512,3273.2,3273.1,0.21397]
[1736669511653,0.21396,3273.3,3273.0,0.4677]
[1736669511861,0.21396,3273.3,3273.2,0.21397]
[1736669512064,12.20371143,3273.5,3273.0,0.4677]
[1736669512365,0.21396,3273.4,3273.3,0.21396]
[1736669514663,12.20371143,3273.5,3273.2,1.01009559]
[1736669514960,11.48132766,3273.5,3273.4,0.21395]
[1736669516762,21.08261711,3273.5,3273.4,0.21395]
[1736669517061,21.60007015,3273.5,3273.4,0.21395]
[1736669518159,21.38612015,3273.5,3273.4,0.21395]
[1736669519562,21.60007015,3273.5,3273.4,0.21395]
[1736669519866,10.56994249,3273.5,3273.4,0.21395]
[1736669520058,10.26643945,3273.5,3273.4,0.21395]
[1736669522966,0.21396,3273.4,3273.3,0.21396]
[1736669524266,0.21396,3273.3,3273.2,1.22405559]
[1736669524766,10.05248945,3273.5,3273.2,1.01009559]
[1736669524965,0.21396,3273.4,3273.3,0.21396]
[1736669528467,10.05248945,3273.5,3273.2,1.01009559]
[1736669528668,10.26643945,3273.5,3273.4,0.21396]
[1736669529368,10.05248945,3273.5,3273.4,1.22405559]
[1736669530474,0.4512,3273.5,3273.4,1.22405559]
[1736669530867,0.66515,3273.5,3273.4,1.22405559]
[1736669532171,12.80908945,3273.6,3273.5,0.21395]
[1736669532372,12.80908945,3273.6,3273.5,1.12735]
[1736669532567,12.80908945,3273.6,3273.5,1.56715]
[1736669533267,3.2078,3273.6,3273.5,1.56715]
[1736669533678,0.51745304,3273.7,3273.5,1.3532]
[1736669533974,0.51745304,3273.7,3273.6,1.22403559]
[1736669534767,11.96739973,3273.8,3273.7,0.21394]
[1736669540283,1.15122207,3273.8,3273.7,0.21394]
[1736669540575,0.21393,3273.8,3273.7,0.21394]
[1736669551086,11.03010766,3273.8,3273.7,0.21394]
[1736669551283,11.96739973,3273.8,3273.7,0.21394]
[1736669554788,11.75346973,3273.8,3273.6,1.01009559]
[1736669554977,0.21394,3273.7,3273.6,0.21394]
[1736669555183,0.21394,3273.6,3273.5,1.10284]
[1736669555383,0.68824,3273.6,3273.5,1.10284]
[1736669556688,0.68824,3273.6,3273.5,0.8889]
[1736669557687,3.89604,3273.6,3273.5,0.8889]
[1736669557890,3.89604,3273.6,3273.5,1.10285]
[1736669560090,3.6821,3273.6,3273.5,1.10285]
[1736669561293,3.89604,3273.6,3273.5,1.10285]
[1736669561994,14.71221766,3273.6,3273.5,1.10285]
[1736669563997,14.49827766,3273.6,3273.5,1.10285]
[1736669564195,14.71221766,3273.6,3273.5,1.10285]
[1736669564597,14.49827766,3273.6,3273.4,1.01009559]
[1736669564788,1.11585,3273.5,3273.4,0.21395]
[1736669565194,0.21397,3273.2,3273.1,0.65457]
[1736669565398,0.21397,3273.2,3273.1,0.21397]
[1736669565594,1.83919207,3273.5,3272.9,3.4006]
[1736669565903,0.21398,3273.0,3272.9,3.17399]
[1736669566398,1.11588,3273.0,3272.9,3.17399]
[1736669566900,1.11588,3273.0,3272.9,0.21399]
[1736669567599,1.11685735,3273.0,3272.9,0.21399]
[1736669569501,0.21399,3272.9,3272.8,4.43188559]
[1736669569700,1.11686735,3273.0,3272.9,0.21399]
[1736669569902,0.21399,3272.9,3272.8,4.43188559]
[1736669570196,0.90287735,3273.0,3272.9,0.21399]
[1736669570197,1.11685735,3273.0,3272.9,0.21399]
[1736669573005,0.90287735,3273.0,3272.9,0.21399]
[1736669573198,1.11685735,3273.0,3272.9,0.21399]
[1736669575300,0.90287735,3273.0,3272.9,0.21399]
[1736669575501,0.45317735,3273.0,3272.9,1.22408559]
[1736669575701,0.00097735,3273.0,3272.9,1.69238559]
[1736669576399,0.00097735,3273.0,3272.9,0.68229]
[1736669577008,0.00097735,3273.0,3272.9,1.69238559]
[1736669578808,0.00097735,3273.0,3272.9,0.68229]
[1736669582011,0.00097735,3273.0,3272.9,0.21399]
[1736669582509,0.47857735,3273.0,3272.9,0.21399]
[1736669589524,0.69255735,3273.0,3272.9,0.21399]
[1736669599531,0.47857735,3273.0,3272.9,0.21399]
[1736669599830,0.69255735,3273.0,3272.9,0.21399]
[1736669602332,1.48867294,3273.0,3272.3,5.76010608]
[1736669602527,1.48867294,3273.0,3272.4,0.21402]
[1736669602528,1.22411559,3272.5,3272.4,0.21402]
[1736669602837,1.22411559,3272.5,3272.1,1.93589559]
[1736669603135,1.4046,3272.4,3272.3,0.21403]
[1736669603531,1.61862,3272.4,3272.3,0.21403]
[1736669603727,1.4046,3272.4,3272.3,0.21403]
[1736669604041,1.4046,3272.4,3272.1,0.4501]
[1736669604235,4.43192559,3272.2,3272.1,0.21404]
[1736669604437,4.21789559,3272.2,3271.8,1.01009559]
[1736669604637,0.21404,3272.1,3272.0,0.21404]
[1736669605537,9.81458098,3272.1,3272.0,0.21404]
[1736669605836,10.75170594,3272.1,3272.0,0.21404]
[1736669606240,10.33203402,3272.1,3272.0,0.21404]
[1736669606438,10.75176409,3272.1,3272.0,0.21404]
[1736669607239,10.33203402,3272.1,3272.0,0.21404]
[1736669607441,10.75173356,3272.1,3272.0,0.21404]
[1736669607837,10.53769356,3272.1,3271.7,0.4372]
[1736669608040,1.22415559,3271.8,3271.7,0.21407]
[1736669608236,0.21407,3271.7,3271.5,0.21407]
[1736669608435,0.21407,3271.7,3271.4,2.34149559]
[1736669608436,1.10407,3271.7,3271.6,0.21407]
[1736669608741,0.89,3271.7,3271.6,0.21407]
[1736669608940,1.10407,3271.7,3271.6,0.21407]
[1736669609634,0.89,3271.7,3271.6,0.21407]
[1736669610643,1.10407,3271.7,3271.6,0.21407]
[1736669610947,0.89,3271.7,3271.6,0.21407]
[1736669613637,1.10407,3271.7,3271.6,0.21407]
[1736669614655,0.89,3271.7,3271.6,0.21407]
[1736669615847,4.0978,3271.7,3271.6,0.21407]
[1736669616345,4.31187,3271.7,3271.6,0.21407]
[1736669617646,4.0978,3271.7,3271.4,0.4451]
[1736669617852,0.21408,3271.6,3271.5,0.21408]
[1736669618045,4.0978,3271.7,3271.4,0.4451]
[1736669618246,4.31187,3271.7,3271.6,0.21407]
[1736669620050,0.21408,3271.5,3271.4,0.21408]
[1736669620256,5.10789559,3271.7,3271.3,1.01009559]
[1736669620456,0.21408,3271.5,3271.4,0.21409]
[1736669622360,0.21408,3271.5,3271.3,1.22418559]
[1736669622860,0.21409,3271.4,3271.3,1.22418559]
[1736669623662,0.21409,3271.4,3271.3,0.21409]
[1736669624061,3.42188,3271.5,3271.4,0.21409]
[1736669625167,0.21409,3271.4,3271.3,0.21409]
[1736669627457,3.2078,3271.5,3271.2,0.9023]
[1736669627657,3.42188,3271.5,3271.4,0.21409]
[1736669630859,0.21408,3271.5,3271.4,0.21409]
[1736669631060,3.42188,3271.5,3271.4,0.21409]
[1736669633975,0.21408,3271.5,3271.4,0.21409]
[1736669634168,3.42188,3271.5,3271.4,0.21409]
[1736669635474,3.2078,3271.5,3271.4,0.21409]
[1736669635876,3.42188,3271.5,3271.4,0.21409]
[1736669636876,3.2078,3271.5,3271.4,0.21409]
[1736669637683,3.42188,3271.5,3271.4,0.21409]
[1736669638471,3.2078,3271.5,3271.4,0.21409]
[1736669638676,3.42188,3271.5,3271.4,0.21409]
[1736669641286,3.2078,3271.5,3271.4,0.21409]
[1736669641485,3.2078,3271.5,3271.4,0.69109]
[1736669643183,3.2078,3271.5,3271.4,41.49109]
[1736669646189,0.21406,3271.9,3271.8,0.21406]
[1736669646380,3.2078,3271.9,3271.8,0.21406]
[1736669646685,3.42185,3271.9,3271.8,0.21406]
[1736669646887,3.42185,3271.9,3271.8,0.69266]
[1736669647492,3.42185,3271.9,3271.8,1.14226]
[1736669648188,3.42185,3271.9,3271.8,1.58526]
[1736669649285,0.21405,3271.9,3271.8,1.58526]
[1736669649486,3.42185,3271.9,3271.8,1.58526]
[1736669649887,3.42185,3271.9,3271.8,1.14226]
[1736669652792,3.42185,3271.9,3271.8,0.69266]
[1736669652989,3.42185,3271.9,3271.8,0.4786]
[1736669653195,0.21407,3271.8,3271.7,0.21406]
[1736669653394,0.68747,3271.8,3271.7,0.21406]
[1736669656196,0.21408,3271.5,3271.4,0.66388]
[1736669656393,3.42188,3271.5,3271.4,0.21408]
[1736669656790,4.32728,3271.5,3271.4,0.21408]
[1736669657793,15.14357338,3271.5,3271.4,0.21408]
[1736669658693,11.93577338,3271.5,3271.4,0.21408]
[1736669660696,0.21409,3271.4,3271.3,0.21409]
[1736669660891,0.21409,3271.3,3271.2,0.2141]
[1736669661199,0.21411,3271.2,3271.1,0.2141]
[1736669662193,0.21411,3271.1,3271.0,41.01411]
[1736669662393,0.21411,3271.1,3271.0,0.21411]
[1736669663403,0.2141,3271.2,3271.1,0.2141]
[1736669664291,1.44789559,3271.4,3271.0,1.01009559]
[1736669664599,0.65189,3271.4,3271.3,0.21409]
[1736669664799,9.61073731,3271.1,3271.0,1.22420559]
[1736669680310,10.54788989,3271.2,3271.1,0.21411]
[1736669687018,0.93715258,3271.2,3271.1,0.21411]
[1736669687211,10.54788989,3271.4,3271.3,0.21409]
[1736669687411,10.54788989,3271.4,3271.3,1.22418559]
[1736669688314,11.01458989,3271.4,3271.3,1.22418559]
[1736669688616,11.22867989,3271.4,3271.3,1.22418559]
[1736669689611,11.01458989,3271.4,3271.3,1.22418559]
[1736669693521,11.22867989,3271.4,3271.3,0.21409]
[1736669693722,11.70817989,3271.4,3271.3,0.21409]
[1736669695521,0.21411,3271.2,3271.1,0.2141]
[1736669695722,0.4672,3271.3,3270.9,1.46779559]
[1736669695925,0.21411,3271.1,3271.0,0.21411]
[1736669697325,10.81629338,3271.2,3270.9,1.01009559]
[1736669697526,0.21411,3271.0,3270.9,1.22420559]
[1736669697923,0.21411,3271.1,3271.0,0.21411]
[1736669699726,11.03039338,3271.2,3271.1,0.21411]
[1736669699926,11.96754596,3271.2,3271.1,0.21411]
[1736669701025,11.75344596,3271.2,3270.9,1.01009559]
[1736669701527,0.21411,3271.1,3271.0,0.21411]
[1736669703132,11.75344596,3271.2,3270.9,1.01009559]
[1736669703426,11.96754596,3271.2,3271.1,0.21411]
[1736669704918,11.75344596,3271.2,3271.1,0.21411]
[1736669705425,11.75344596,3271.2,3271.1,1.22420559]
[1736669705622,11.75344596,3271.2,3271.1,2.15940559]
[1736669707132,0.93715258,3271.2,3271.1,2.15940559]
[1736669707330,12.2383353,3271.3,3271.2,0.2141]
[1736669708235,15.4461353,3271.3,3271.2,0.2141]
[1736669709227,12.0242453,3271.3,3271.2,0.2141]
[1736669711429,22.85028201,3271.3,3271.2,0.2141]
[1736669711630,23.78743459,3271.3,3271.2,0.2141]
[1736669712332,11.76318929,3271.3,3271.2,0.2141]
[1736669712533,10.82603671,3271.3,3271.2,0.2141]
[1736669714538,20.4484514,3271.3,3271.2,0.2141]
[1736669714831,20.96590444,3271.3,3271.2,0.2141]
[1736669717433,21.38632603,3271.3,3271.2,0.2141]
[1736669718438,0.2141,3271.2,3271.1,0.2141]
[1736669718636,2.07117463,3271.2,3271.1,0.2141]
[1736669720840,1.85707463,3271.2,3271.0,3.2078]
[1736669721134,0.4631,3271.1,3271.0,3.42191]
[1736669721334,0.67721,3271.1,3271.0,3.2078]
[1736669721530,0.21411,3271.0,3270.9,0.21411]
[1736669722335,11.28110977,3271.1,3270.8,0.44]
[1736669722533,11.49521977,3271.1,3271.0,0.21411]
[1736669723134,11.28110977,3271.1,3271.0,0.21411]
[1736669724138,11.49521977,3271.1,3271.0,0.21411]
[1736669724337,11.28110977,3271.1,3271.0,0.21411]
[1736669724837,11.49521977,3271.1,3271.0,0.21411]
[1736669725336,12.2189844,3271.1,3270.2,2.55375738]
[1736669725543,0.21412,3270.9,3270.8,0.21412]
[1736669726339,12.4330944,3271.1,3271.0,0.21411]
[1736669727643,12.2189844,3271.1,3270.7,1.01009559]
[1736669727837,12.4330944,3271.1,3271.0,0.21411]
[1736669728246,0.21411,3271.0,3270.9,0.21411]
[1736669728447,12.4330944,3271.1,3271.0,0.21411]
[1736669728645,12.2189844,3271.1,3270.7,1.01009559]
[1736669729049,12.4330944,3271.1,3271.0,0.21411]
[1736669729248,12.4330944,3271.1,3270.9,0.21411]
[1736669730249,12.4330944,3271.1,3271.0,0.21411]
[1736669731050,0.21411,3271.0,3270.8,0.21412]
[1736669731247,1.22420559,3271.0,3270.8,0.21412]
[1736669732050,1.01009559,3271.0,3270.9,0.21412]
[1736669732249,11.82810536,3271.0,3270.6,0.4459]
[1736669732451,0.21412,3270.9,3270.8,0.21412]
[1736669733051,11.82810536,3271.0,3270.9,0.21412]
[1736669733351,12.04221536,3271.0,3270.9,0.21412]
[1736669733553,11.82810536,3271.0,3270.9,0.21412]
[1736669733749,12.04221536,3271.0,3270.9,0.21412]
[1736669734350,0.21413,3270.8,3270.7,0.21413]
[1736669736448,0.21414,3270.5,3270.4,3.42195]
[1736669736649,0.21414,3270.5,3270.4,0.21415]
[1736669737754,1.01009559,3270.6,3270.2,4.02405297]
[1736669738059,1.3857,3270.7,3270.4,1.01009559]
[1736669738251,1.3857,3270.7,3270.6,0.21414]
[1736669740551,1.59983,3270.7,3270.6,0.21414]
[1736669743061,1.59983,3270.7,3270.4,1.01009559]
[1736669743062,1.3857,3270.7,3270.2,4.02405297]
[1736669743357,0.21414,3270.6,3270.5,0.21414]
[1736669744054,3.42194,3270.6,3270.5,0.21414]
[1736669744860,13.01552165,3270.6,3270.5,0.21414]
[1736669745061,13.95339628,3270.6,3270.5,0.21414]
[1736669746262,13.73925628,3270.6,3270.5,0.21414]
[1736669746760,13.95339628,3270.6,3270.5,0.21414]
[1736669748961,10.74559628,3270.6,3270.5,0.21414]
[1736669749165,13.73925628,3270.6,3270.5,0.21414]
[1736669750859,13.95339628,3270.6,3270.5,0.21414]
[1736669751064,13.73925628,3270.6,3270.5,0.21414]
[1736669751264,13.95339628,3270.6,3270.5,0.21414]
[1736669754570,13.01552165,3270.6,3270.5,0.21414]
[1736669755570,9.80772165,3270.6,3270.5,0.21414]
[1736669755771,13.01552165,3270.6,3270.5,0.21414]
[1736669760767,12.80138165,3270.6,3270.5,0.21414]
[1736669761375,13.01552165,3270.6,3270.5,0.21414]
[1736669761678,12.80138165,3270.6,3270.5,0.21414]
[1736669762775,13.01552165,3270.6,3270.5,0.21414]
[1736669762961,13.01552165,3270.6,3270.5,1.11944]
[1736669763578,12.80138165,3270.6,3270.5,1.11944]
[1736669764168,13.01552165,3270.6,3270.5,1.11944]
[1736669765477,12.80138165,3270.6,3270.5,1.11944]
[1736669765974,13.73925628,3270.6,3270.5,1.56024]
[1736669766570,4.14567463,3270.6,3270.5,1.56024]
[1736669766778,3.2078,3270.6,3270.5,1.56024]
[1736669768983,3.42194,3270.6,3270.5,1.56024]
[1736669769278,3.42194,3270.6,3270.5,0.65494]
[1736669771178,3.42194,3270.6,3270.5,0.21414]
[1736669772077,0.21414,3270.6,3270.5,0.21414]
[1736669776482,1.15201463,3270.6,3270.5,0.21414]
[1736669777682,1.15201463,3270.6,3270.3,0.4542]
[1736669777890,0.21415,3270.4,3270.3,0.66835]
[1736669779278,11.02845508,3270.4,3270.3,0.66835]
[1736669779887,10.81430508,3270.4,3270.3,0.66835]
[1736669780087,10.81430508,3270.4,3270.3,1.67844559]
[1736669782983,12.03855067,3270.4,3270.3,0.66835]
[1736669784990,11.82440067,3270.4,3270.3,0.66835]
[1736669785388,12.03855067,3270.4,3270.3,0.66835]
[1736669785689,12.26300067,3270.4,3270.3,0.66835]
[1736669787088,12.47715067,3270.4,3270.3,0.66835]
[1736669789089,12.47715067,3270.4,3270.3,0.21415]
[1736669789590,12.47715067,3270.4,3270.2,2.55375738]
[1736669789591,0.21416,3270.3,3270.2,2.55375738]
[1736669789794,0.65776,3270.3,3270.2,2.76791738]
[1736669790487,0.65776,3270.3,3270.2,0.21416]
[1736669792087,12.6820053,3270.3,3270.2,0.21416]
[1736669793478,12.4678453,3270.3,3270.1,0.9055]
[1736669793785,1.22425559,3270.2,3270.1,1.11967]
[1736669793997,1.66895559,3270.2,3270.1,1.11967]
[1736669795891,1.66895559,3270.2,3270.1,0.9055]
[1736669796092,1.66895559,3270.2,3270.1,1.11967]
[1736669796693,1.66895559,3270.2,3270.1,0.65407]
[1736669797093,1.66895559,3270.2,3270.1,0.21417]
[1736669798085,4.87675559,3270.2,3270.1,0.21417]
[1736669798395,5.81463022,3270.2,3270.1,0.21417]
[1736669798894,5.60047022,3270.2,3269.9,0.4399]
[1736669799194,0.65177,3270.1,3270.0,0.21417]
[1736669800396,3.85957,3270.1,3270.0,0.21417]
[1736669803895,14.65607857,3270.1,3270.0,0.21417]
[1736669804596,11.44827857,3270.1,3270.0,0.21417]
[1736669804797,14.44190857,3270.1,3269.9,0.4399]
[1736669804996,14.65607857,3270.1,3270.0,0.21417]
[1736669806894,0.21417,3270.0,3269.9,0.4399]
[1736669807095,1.22426559,3270.0,3269.9,0.65407]
[1736669807596,1.01009559,3270.0,3269.9,0.65407]
[1736669811000,1.01009559,3270.0,3269.9,0.21417]
[1736669811498,2.02019118,3270.0,3269.7,0.67488]
[1736669811701,1.01009559,3269.8,3269.5,0.4374]
[1736669811900,1.01009559,3269.6,3269.5,0.8953]
[1736669812500,1.01009559,3269.6,3269.5,1.1095]
[1736669813406,10.59995119,3269.6,3269.5,1.1095]
[1736669822407,9.5898556,3269.6,3269.5,1.1095]
[1736669823512,14.19103023,3269.7,3269.5,0.8953]
[1736669823810,14.19103023,3269.7,3269.6,0.21419]
[1736669824910,10.98323023,3269.7,3269.6,0.21419]
[1736669825207,14.19103023,3269.7,3269.6,0.21419]
[1736669825605,10.52773023,3269.7,3269.6,0.21419]
[1736669825807,10.10730864,3269.7,3269.6,0.21419]
[1736669826012,9.5898556,3269.7,3269.6,5.21419]
[1736669826911,3.2078,3270.1,3269.6,5.53548]
[1736669827109,3.2078,3270.1,3270.0,1.01009559]
[1736669827311,3.2078,3270.1,3270.0,1.22426559]
[1736669827503,3.2078,3270.1,3270.0,42.02426559]
[1736669828111,10.52744903,3270.5,3270.0,42.02426559]
[1736669828112,10.10781454,3270.5,3270.4,0.21414]
[1736669828408,10.10781454,3270.5,3270.4,1.22423559]
[1736669828908,0.51795894,3270.5,3270.4,1.22423559]
[1736669829111,9.5898556,3270.7,3270.6,0.21413]
[1736669830016,11.53729308,3270.8,3270.7,0.21412]
[1736669832000,10.10781454,3270.8,3270.7,0.21412]
[1736669832304,9.5898556,3270.8,3270.7,0.21412]
[1736669832508,9.5898556,3270.8,3270.7,0.68132]
[1736669832713,9.5898556,3270.8,3270.7,1.12642]